[Event "Titled Tuesday Blitz January 31 Early 2023"]
[White "Zierk, Steven"]
[Black "Papasimakopoulos, Alexandros"]
[WhiteFideId "2034255"]
[BlackFideId "4244125"]
[WhiteElo "2488"]
[BlackElo "2401"]
[Result "1-0"]
[Round "03"]
[TimeControl "180+2"]
[Date "2023.01.31"]
[WhiteClock "0:00:12"]
[BlackClock "0:00:01"]

1. e4 {[%clk 0:03:00]}  e6 {[%clk 0:03:00]} 2. d4 {[%clk 0:03:00]}  d5 {[%clk 0:03:00]} 3. Nc3 {[%clk 0:03:01]}  Bb4 {[%clk 0:02:59]} 4. e5 {[%clk 0:03:01]}  c5 {[%clk 0:02:59]} 5. Bd2 {[%clk 0:02:58]}  Ne7 {[%clk 0:02:49]} 6. Nb5 {[%clk 0:02:57]}  Bxd2+ {[%clk 0:02:49]} 7. Qxd2 {[%clk 0:02:58]}  O-O {[%clk 0:02:48]} 8. f4 {[%clk 0:02:58]}  a6 {[%clk 0:02:41]} 9. Nd6 {[%clk 0:02:58]}  cxd4 {[%clk 0:02:41]} 10. Nf3 {[%clk 0:02:56]}  Nbc6 {[%clk 0:02:39]} 11. Bd3 {[%clk 0:02:54]}  f6 {[%clk 0:02:39]} 12. O-O {[%clk 0:02:52]}  fxe5 {[%clk 0:02:27]} 13. fxe5 {[%clk 0:02:47]}  Rxf3 {[%clk 0:02:06]} 14. gxf3 {[%clk 0:02:31]}  Nxe5 {[%clk 0:02:06]} 15. Nxc8 {[%clk 0:02:30]}  Rxc8 {[%clk 0:02:06]} 16. Rae1 {[%clk 0:02:27]}  Qd6 {[%clk 0:02:03]} 17. Kh1 {[%clk 0:02:04]}  Rf8 {[%clk 0:01:53]} 18. f4 {[%clk 0:01:57]}  Nc4 {[%clk 0:01:44]} 19. Bxc4 {[%clk 0:01:53]}  dxc4 {[%clk 0:01:45]} 20. Qe2 {[%clk 0:01:53]}  Qd5+ {[%clk 0:01:36]} 21. Qe4 {[%clk 0:01:52]}  Kf7 {[%clk 0:01:18]} 22. Kg1 {[%clk 0:01:43]}  Qxe4 {[%clk 0:01:16]} 23. Rxe4 {[%clk 0:01:44]}  Rd8 {[%clk 0:01:15]} 24. Rd1 {[%clk 0:01:31]}  Nf5 {[%clk 0:01:14]} 25. c3 {[%clk 0:01:28]}  b5 {[%clk 0:00:39]} 26. cxd4 {[%clk 0:01:27]}  Kf6 {[%clk 0:00:33]} 27. Kf2 {[%clk 0:01:21]}  Rd6 {[%clk 0:00:32]} 28. Re2 {[%clk 0:01:14]}  Nxd4 {[%clk 0:00:25]} 29. Red2 {[%clk 0:01:13]}  e5 {[%clk 0:00:26]} 30. Ke3 {[%clk 0:01:03]}  Nf5+ {[%clk 0:00:24]} 31. Kf3 {[%clk 0:01:03]}  Re6 {[%clk 0:00:19]} 32. fxe5+ {[%clk 0:00:49]}  Rxe5 {[%clk 0:00:20]} 33. Re2 {[%clk 0:00:46]}  Rc5 {[%clk 0:00:18]} 34. Rc2 {[%clk 0:00:30]}  Rc6 {[%clk 0:00:17]} 35. Rd8 {[%clk 0:00:29]}  Ke7 {[%clk 0:00:16]} 36. Rcd2 {[%clk 0:00:28]}  b4 {[%clk 0:00:15]} 37. Kf4 {[%clk 0:00:16]}  c3 {[%clk 0:00:14]} 38. R2d7+ {[%clk 0:00:11]}  Ke6 {[%clk 0:00:13]} 39. Rd1 {[%clk 0:00:11]}  cxb2 {[%clk 0:00:08]} 40. Re1+ {[%clk 0:00:10]}  Kf6 {[%clk 0:00:03]} 41. Rf8+ {[%clk 0:00:10]}  Kg6 {[%clk 0:00:03]} 42. Rg1+ {[%clk 0:00:10]}  Kh6 {[%clk 0:00:02]} 43. Rb1 {[%clk 0:00:10]}  Nd4 {[%clk 0:00:02]} 44. Rxb2 {[%clk 0:00:10]}  Ne6+ {[%clk 0:00:02]} 45. Ke5 {[%clk 0:00:10]}  Nxf8 {[%clk 0:00:03]} 46. Kd5 {[%clk 0:00:11]}  Rg6 {[%clk 0:00:03]} 47. Rxb4 {[%clk 0:00:11]}  Rg5+ {[%clk 0:00:04]} 48. Kd6 {[%clk 0:00:11]}  Rg6+ {[%clk 0:00:04]} 49. Ke7 {[%clk 0:00:11]}  Ne6 {[%clk 0:00:04]} 50. Rh4+ {[%clk 0:00:12]}  Kg5 {[%clk 0:00:05]} 51. Rxh7 {[%clk 0:00:13]}  Nc5 {[%clk 0:00:04]} 52. Kf7 {[%clk 0:00:12]}  Na4 {[%clk 0:00:03]} 53. h4+ {[%clk 0:00:12]}  Kf5 {[%clk 0:00:03]} 54. Rh5+ {[%clk 0:00:12]}  Kg4 {[%clk 0:00:01]} 55. Kxg6 {[%clk 0:00:13]}  Nc3 {[%clk 0:00:01]} 56. Ra5 {[%clk 0:00:13]}  Kxh4 {[%clk 0:00:01]} 57. Rxa6 {[%clk 0:00:13]}  Kg4 {[%clk 0:00:02]} 58. Rc6 {[%clk 0:00:12]}  Nb5 {[%clk 0:00:01]} 59. a4 {[%clk 0:00:12]}  Na7 {[%clk 0:00:01]} 60. Rc7 {[%clk 0:00:12]} 1-0


[Site "https://www.chess.com"]

[Event "Titled Tuesday Blitz January 31 Early 2023"]
[White "Hakobyan, Aram"]
[Black "Mahdavi, Reza"]
[WhiteFideId "13306677"]
[BlackFideId "12595926"]
[WhiteElo "2608"]
[BlackElo "2339"]
[Result "1-0"]
[Round "03"]
[TimeControl "180+2"]
[Date "2023.01.31"]
[WhiteClock "0:02:31"]
[BlackClock "0:00:24"]

1. e4 {[%clk 0:03:00]}  c5 {[%clk 0:01:18]} 2. Nf3 {[%clk 0:02:59]}  e6 {[%clk 0:01:16]} 3. d4 {[%clk 0:02:59]}  cxd4 {[%clk 0:01:17]} 4. Nxd4 {[%clk 0:03:00]}  Nc6 {[%clk 0:01:17]} 5. Bf4 {[%clk 0:03:00]}  Nf6 {[%clk 0:01:16]} 6. Nb5 {[%clk 0:02:58]}  e5 {[%clk 0:01:13]} 7. Bg5 {[%clk 0:02:56]}  a6 {[%clk 0:01:12]} 8. Bxf6 {[%clk 0:02:51]}  gxf6 {[%clk 0:01:13]} 9. Nd6+ {[%clk 0:02:51]}  Bxd6 {[%clk 0:01:12]} 10. Qxd6 {[%clk 0:02:52]}  Qa5+ {[%clk 0:01:12]} 11. Nc3 {[%clk 0:02:45]}  Qb4 {[%clk 0:01:08]} 12. Qxf6 {[%clk 0:02:37]}  O-O {[%clk 0:00:24]} 13. O-O-O {[%clk 0:02:31]} 1-0


[Site "https://www.chess.com"]

[Event "Titled Tuesday Blitz January 31 Early 2023"]
[White "Svidler, Peter"]
[Black "Hambleton, Aman"]
[WhiteFideId "4102142"]
[BlackFideId "2606577"]
[WhiteElo "2683"]
[BlackElo "2420"]
[Result "1/2-1/2"]
[Round "03"]
[TimeControl "180+2"]
[Date "2023.01.31"]
[WhiteClock "0:01:02"]
[BlackClock "0:00:05"]

1. e4 {[%clk 0:03:00]}  c5 {[%clk 0:02:55]} 2. Nf3 {[%clk 0:02:59]}  e6 {[%clk 0:02:50]} 3. d4 {[%clk 0:02:59]}  cxd4 {[%clk 0:02:51]} 4. Nxd4 {[%clk 0:02:59]}  Nc6 {[%clk 0:02:49]} 5. Nc3 {[%clk 0:02:58]}  Qc7 {[%clk 0:02:44]} 6. Be3 {[%clk 0:02:58]}  a6 {[%clk 0:02:44]} 7. Qd2 {[%clk 0:02:57]}  Nf6 {[%clk 0:02:25]} 8. O-O-O {[%clk 0:02:56]}  b5 {[%clk 0:02:02]} 9. Nxc6 {[%clk 0:02:41]}  Qxc6 {[%clk 0:01:42]} 10. f3 {[%clk 0:02:41]}  Bb7 {[%clk 0:01:37]} 11. Bd4 {[%clk 0:02:38]}  Bc5 {[%clk 0:01:12]} 12. e5 {[%clk 0:02:26]}  Bxd4 {[%clk 0:01:01]} 13. Qxd4 {[%clk 0:02:26]}  Nd5 {[%clk 0:01:00]} 14. Ne4 {[%clk 0:02:26]}  O-O {[%clk 0:01:00]} 15. Nd6 {[%clk 0:02:20]}  f6 {[%clk 0:00:47]} 16. Bd3 {[%clk 0:02:19]}  fxe5 {[%clk 0:00:37]} 17. Qxe5 {[%clk 0:02:19]}  Nf6 {[%clk 0:00:16]} 18. Rhe1 {[%clk 0:02:04]}  Rad8 {[%clk 0:00:16]} 19. Kb1 {[%clk 0:02:04]}  Ba8 {[%clk 0:00:16]} 20. a3 {[%clk 0:01:58]}  Qc7 {[%clk 0:00:08]} 21. Qd4 {[%clk 0:01:51]}  Bd5 {[%clk 0:00:03]} 22. Qe5 {[%clk 0:01:42]}  Ne8 {[%clk 0:00:02]} 23. Nxe8 {[%clk 0:01:40]}  Qxe5 {[%clk 0:00:02]} 24. Rxe5 {[%clk 0:01:40]}  Rfxe8 {[%clk 0:00:03]} 25. Be4 {[%clk 0:01:32]}  Bxe4 {[%clk 0:00:03]} 26. Rxe4 {[%clk 0:01:31]}  d5 {[%clk 0:00:03]} 27. Re5 {[%clk 0:01:31]}  Kf7 {[%clk 0:00:03]} 28. Rde1 {[%clk 0:01:31]}  g6 {[%clk 0:00:03]} 29. f4 {[%clk 0:01:30]}  Rd6 {[%clk 0:00:03]} 30. g3 {[%clk 0:01:31]}  Rc8 {[%clk 0:00:03]} 31. c3 {[%clk 0:01:27]}  h6 {[%clk 0:00:03]} 32. Kc2 {[%clk 0:01:27]}  Rc4 {[%clk 0:00:03]} 33. Kd3 {[%clk 0:01:26]}  Kf6 {[%clk 0:00:04]} 34. h4 {[%clk 0:01:26]}  h5 {[%clk 0:00:03]} 35. b3 {[%clk 0:01:11]}  Rc7 {[%clk 0:00:03]} 36. Kd4 {[%clk 0:01:10]}  Rdc6 {[%clk 0:00:02]} 37. R5e3 {[%clk 0:01:09]}  Rd6 {[%clk 0:00:02]} 38. Ra1 {[%clk 0:01:08]}  a5 {[%clk 0:00:02]} 39. a4 {[%clk 0:01:07]}  Rb6 {[%clk 0:00:02]} 40. b4 {[%clk 0:01:03]}  axb4 {[%clk 0:00:02]} 41. a5 {[%clk 0:01:04]}  Rc4+ {[%clk 0:00:02]} 42. Kd3 {[%clk 0:01:03]}  Rxc3+ {[%clk 0:00:03]} 43. Kd2 {[%clk 0:01:03]}  Ra6 {[%clk 0:00:02]} 44. Rxc3 {[%clk 0:01:03]}  bxc3+ {[%clk 0:00:03]} 45. Kxc3 {[%clk 0:01:04]}  e5 {[%clk 0:00:04]} 46. fxe5+ {[%clk 0:01:02]}  Kxe5 {[%clk 0:00:05]} 47. Kb4 {[%clk 0:01:03]}  Ra8 {[%clk 0:00:03]} 48. a6 {[%clk 0:01:02]}  d4 {[%clk 0:00:03]} 49. Kxb5 {[%clk 0:01:02]}  d3 {[%clk 0:00:02]} 50. a7 {[%clk 0:01:01]}  Kd4 {[%clk 0:00:02]} 51. Kb6 {[%clk 0:01:01]}  d2 {[%clk 0:00:02]} 52. Kb7 {[%clk 0:01:01]}  Rd8 {[%clk 0:00:02]} 53. a8=Q {[%clk 0:01:00]}  Rxa8 {[%clk 0:00:02]} 54. Rxa8 {[%clk 0:01:00]}  Ke3 {[%clk 0:00:02]} 55. Re8+ {[%clk 0:01:00]}  Kf2 {[%clk 0:00:02]} 56. Rd8 {[%clk 0:01:00]}  Ke2 {[%clk 0:00:03]} 57. Kc6 {[%clk 0:01:00]}  d1=Q {[%clk 0:00:03]} 58. Rxd1 {[%clk 0:01:00]}  Kxd1 {[%clk 0:00:04]} 59. Kd5 {[%clk 0:01:00]}  Ke2 {[%clk 0:00:05]} 60. Ke4 {[%clk 0:01:00]}  Kf2 {[%clk 0:00:05]} 61. Kf4 {[%clk 0:01:00]}  Kg2 {[%clk 0:00:05]} 62. g4 {[%clk 0:01:01]}  hxg4 {[%clk 0:00:04]} 63. Kxg4 {[%clk 0:01:01]}  Kh2 {[%clk 0:00:05]} 64. h5 {[%clk 0:01:01]}  gxh5+ {[%clk 0:00:05]} 65. Kxh5 {[%clk 0:01:02]} 1/2-1/2


[Site "https://www.chess.com"]

[Event "Titled Tuesday Blitz January 31 Early 2023"]
[White "Drygalov, Sergey"]
[Black "Fernandez Guillen, Ernesto J."]
[WhiteFideId "24171743"]
[BlackFideId "3512428"]
[WhiteElo "2547"]
[BlackElo "2477"]
[Result "1-0"]
[Round "03"]
[TimeControl "180+2"]
[Date "2023.01.31"]
[WhiteClock "0:00:18"]
[BlackClock "0:00:12"]

1. d4 {[%clk 0:02:58]}  Nf6 {[%clk 0:02:59]} 2. c4 {[%clk 0:02:54]}  g6 {[%clk 0:02:59]} 3. Nc3 {[%clk 0:02:53]}  Bg7 {[%clk 0:02:59]} 4. e4 {[%clk 0:02:54]}  d6 {[%clk 0:03:00]} 5. Nf3 {[%clk 0:02:54]}  O-O {[%clk 0:03:01]} 6. Be2 {[%clk 0:02:55]}  e5 {[%clk 0:03:01]} 7. O-O {[%clk 0:02:55]}  Nc6 {[%clk 0:03:02]} 8. d5 {[%clk 0:02:56]}  Ne7 {[%clk 0:03:02]} 9. b4 {[%clk 0:02:56]}  Ne8 {[%clk 0:03:03]} 10. a4 {[%clk 0:02:50]}  f5 {[%clk 0:03:03]} 11. Ng5 {[%clk 0:02:50]}  h6 {[%clk 0:02:51]} 12. Ne6 {[%clk 0:02:50]}  Bxe6 {[%clk 0:02:51]} 13. dxe6 {[%clk 0:02:51]}  c6 {[%clk 0:02:52]} 14. c5 {[%clk 0:02:44]}  d5 {[%clk 0:02:47]} 15. exd5 {[%clk 0:02:38]}  cxd5 {[%clk 0:02:46]} 16. Qb3 {[%clk 0:02:38]}  Nc7 {[%clk 0:02:36]} 17. Rd1 {[%clk 0:02:37]}  d4 {[%clk 0:02:33]} 18. Bc4 {[%clk 0:02:31]}  Qc8 {[%clk 0:02:24]} 19. Nb5 {[%clk 0:02:30]}  Nxb5 {[%clk 0:02:21]} 20. axb5 {[%clk 0:02:31]}  Rd8 {[%clk 0:02:19]} 21. Bb2 {[%clk 0:02:23]}  b6 {[%clk 0:02:12]} 22. c6 {[%clk 0:02:16]}  Qc7 {[%clk 0:02:10]} 23. Rd2 {[%clk 0:02:16]}  Rd6 {[%clk 0:01:56]} 24. h4 {[%clk 0:01:51]}  h5 {[%clk 0:01:40]} 25. Qg3 {[%clk 0:01:51]}  Kh7 {[%clk 0:01:36]} 26. Rad1 {[%clk 0:01:51]}  Rad8 {[%clk 0:01:35]} 27. Rd3 {[%clk 0:01:10]}  a6 {[%clk 0:01:30]} 28. bxa6 {[%clk 0:01:02]}  Rxc6 {[%clk 0:01:22]} 29. Bb3 {[%clk 0:00:57]}  b5 {[%clk 0:00:59]} 30. R3d2 {[%clk 0:00:36]}  Qa7 {[%clk 0:00:53]} 31. Qg5 {[%clk 0:00:31]}  Rxa6 {[%clk 0:00:48]} 32. Kh1 {[%clk 0:00:30]}  Rad6 {[%clk 0:00:47]} 33. Ra1 {[%clk 0:00:29]}  Qb7 {[%clk 0:00:47]} 34. Qg3 {[%clk 0:00:22]}  e4 {[%clk 0:00:33]} 35. Rc2 {[%clk 0:00:21]}  d3 {[%clk 0:00:19]} 36. Bxg7 {[%clk 0:00:22]}  dxc2 {[%clk 0:00:20]} 37. Bb2 {[%clk 0:00:22]}  Rd1+ {[%clk 0:00:19]} 38. Kh2 {[%clk 0:00:22]}  Rxa1 {[%clk 0:00:14]} 39. Qc3 {[%clk 0:00:23]}  Qb8+ {[%clk 0:00:09]} 40. g3 {[%clk 0:00:23]}  Rg8 {[%clk 0:00:09]} 41. Bxa1 {[%clk 0:00:22]}  f4 {[%clk 0:00:08]} 42. Bxc2 {[%clk 0:00:19]}  fxg3+ {[%clk 0:00:09]} 43. fxg3 {[%clk 0:00:20]}  Nf5 {[%clk 0:00:08]} 44. Bxe4 {[%clk 0:00:19]}  Qf8 {[%clk 0:00:04]} 45. Qe5 {[%clk 0:00:17]}  Qe7 {[%clk 0:00:02]} 46. Bxf5 {[%clk 0:00:17]}  gxf5 {[%clk 0:00:03]} 47. Qxf5+ {[%clk 0:00:17]}  Rg6 {[%clk 0:00:04]} 48. Qf7+ {[%clk 0:00:15]}  Rg7 {[%clk 0:00:02]} 49. Qxg7+ {[%clk 0:00:12]}  Qxg7 {[%clk 0:00:03]} 50. Bxg7 {[%clk 0:00:12]}  Kxg7 {[%clk 0:00:04]} 51. g4 {[%clk 0:00:13]}  Kf6 {[%clk 0:00:04]} 52. gxh5 {[%clk 0:00:12]}  Kxe6 {[%clk 0:00:04]} 53. Kg3 {[%clk 0:00:12]}  Kf7 {[%clk 0:00:05]} 54. Kg4 {[%clk 0:00:13]}  Kg7 {[%clk 0:00:06]} 55. Kg5 {[%clk 0:00:13]}  Kh7 {[%clk 0:00:07]} 56. Kf5 {[%clk 0:00:13]}  Kh6 {[%clk 0:00:07]} 57. Ke5 {[%clk 0:00:14]}  Kxh5 {[%clk 0:00:08]} 58. Kd5 {[%clk 0:00:15]}  Kxh4 {[%clk 0:00:09]} 59. Kc5 {[%clk 0:00:15]}  Kg5 {[%clk 0:00:10]} 60. Kxb5 {[%clk 0:00:16]}  Kf6 {[%clk 0:00:11]} 61. Kc6 {[%clk 0:00:17]}  Ke7 {[%clk 0:00:12]} 62. Kc7 {[%clk 0:00:18]} 1-0


[Site "https://www.chess.com"]

[Event "Titled Tuesday Blitz January 31 Early 2023"]
[White "Oparin, Grigoriy"]
[Black "Begmuratov, Khumoyun"]
[WhiteFideId "24125890"]
[BlackFideId "14210207"]
[WhiteElo "2667"]
[BlackElo "2387"]
[Result "0-1"]
[Round "03"]
[TimeControl "180+2"]
[Date "2023.01.31"]
[WhiteClock "0:00:07"]
[BlackClock "0:00:04"]

1. d4 {[%clk 0:03:00]}  Nf6 {[%clk 0:02:59]} 2. Nf3 {[%clk 0:03:00]}  e6 {[%clk 0:02:58]} 3. c4 {[%clk 0:03:01]}  b6 {[%clk 0:02:54]} 4. g3 {[%clk 0:03:01]}  Bb4+ {[%clk 0:02:52]} 5. Bd2 {[%clk 0:03:01]}  Bxd2+ {[%clk 0:02:52]} 6. Nbxd2 {[%clk 0:03:01]}  Bb7 {[%clk 0:02:52]} 7. Bg2 {[%clk 0:03:02]}  O-O {[%clk 0:02:51]} 8. O-O {[%clk 0:03:02]}  d6 {[%clk 0:02:42]} 9. Qc2 {[%clk 0:03:01]}  Nbd7 {[%clk 0:02:41]} 10. e4 {[%clk 0:03:01]}  e5 {[%clk 0:02:41]} 11. d5 {[%clk 0:03:00]}  a5 {[%clk 0:02:42]} 12. b3 {[%clk 0:03:00]}  g6 {[%clk 0:02:38]} 13. a3 {[%clk 0:02:59]}  Ne8 {[%clk 0:02:36]} 14. h4 {[%clk 0:02:53]}  Ng7 {[%clk 0:02:35]} 15. b4 {[%clk 0:02:45]}  Qe7 {[%clk 0:02:34]} 16. Rfe1 {[%clk 0:02:35]}  f5 {[%clk 0:02:31]} 17. exf5 {[%clk 0:02:35]}  gxf5 {[%clk 0:02:27]} 18. Nd4 {[%clk 0:02:30]}  Qf6 {[%clk 0:02:08]} 19. Nb5 {[%clk 0:02:23]}  Rfc8 {[%clk 0:01:58]} 20. Qc3 {[%clk 0:02:10]}  Ba6 {[%clk 0:01:21]} 21. Nb3 {[%clk 0:01:39]}  a4 {[%clk 0:01:10]} 22. Nd2 {[%clk 0:01:35]}  Bxb5 {[%clk 0:00:51]} 23. cxb5 {[%clk 0:01:35]}  Ra7 {[%clk 0:00:50]} 24. Rac1 {[%clk 0:01:35]}  Re8 {[%clk 0:00:49]} 25. Nf1 {[%clk 0:01:22]}  Nf8 {[%clk 0:00:49]} 26. Rc2 {[%clk 0:01:09]}  Ng6 {[%clk 0:00:48]} 27. Rec1 {[%clk 0:01:08]}  h5 {[%clk 0:00:47]} 28. Nh2 {[%clk 0:00:59]}  Re7 {[%clk 0:00:40]} 29. Nf3 {[%clk 0:00:57]}  Ra8 {[%clk 0:00:33]} 30. Qd2 {[%clk 0:00:54]}  Ra7 {[%clk 0:00:28]} 31. Ng5 {[%clk 0:00:51]}  Qf8 {[%clk 0:00:21]} 32. Rc6 {[%clk 0:00:46]}  Qf6 {[%clk 0:00:21]} 33. R1c2 {[%clk 0:00:45]}  e4 {[%clk 0:00:16]} 34. Qc1 {[%clk 0:00:42]}  Ne5 {[%clk 0:00:15]} 35. Rxc7 {[%clk 0:00:43]}  Raxc7 {[%clk 0:00:12]} 36. Rxc7 {[%clk 0:00:43]}  Re8 {[%clk 0:00:08]} 37. Nh3 {[%clk 0:00:28]}  Nd3 {[%clk 0:00:08]} 38. Qc3 {[%clk 0:00:25]}  Qxc3 {[%clk 0:00:05]} 39. Rxc3 {[%clk 0:00:26]}  Kf7 {[%clk 0:00:05]} 40. Bf1 {[%clk 0:00:26]}  Ne5 {[%clk 0:00:04]} 41. Nf4 {[%clk 0:00:26]}  Kf6 {[%clk 0:00:04]} 42. Be2 {[%clk 0:00:26]}  Rh8 {[%clk 0:00:03]} 43. Rc7 {[%clk 0:00:25]}  Rd8 {[%clk 0:00:03]} 44. Bxh5 {[%clk 0:00:23]}  Nxh5 {[%clk 0:00:03]} 45. Nxh5+ {[%clk 0:00:24]}  Kg6 {[%clk 0:00:03]} 46. Nf4+ {[%clk 0:00:25]}  Kf6 {[%clk 0:00:04]} 47. Kg2 {[%clk 0:00:21]}  Nf3 {[%clk 0:00:04]} 48. h5 {[%clk 0:00:21]}  Rg8 {[%clk 0:00:03]} 49. Rc6 {[%clk 0:00:21]}  Ke5 {[%clk 0:00:03]} 50. Rxb6 {[%clk 0:00:20]}  Ne1+ {[%clk 0:00:03]} 51. Kf1 {[%clk 0:00:20]}  Nf3 {[%clk 0:00:03]} 52. Rc6 {[%clk 0:00:20]}  Rb8 {[%clk 0:00:04]} 53. b6 {[%clk 0:00:21]}  Nd4 {[%clk 0:00:04]} 54. h6 {[%clk 0:00:19]}  Nf3 {[%clk 0:00:02]} 55. h7 {[%clk 0:00:17]}  Ng5 {[%clk 0:00:03]} 56. h8=Q+ {[%clk 0:00:17]}  Rxh8 {[%clk 0:00:02]} 57. Ng6+ {[%clk 0:00:18]}  Kxd5 {[%clk 0:00:02]} 58. Rxd6+ {[%clk 0:00:14]}  Kxd6 {[%clk 0:00:02]} 59. Nxh8 {[%clk 0:00:15]}  Kc6 {[%clk 0:00:03]} 60. Ng6 {[%clk 0:00:15]}  Kxb6 {[%clk 0:00:03]} 61. Ne7 {[%clk 0:00:15]}  Kb5 {[%clk 0:00:03]} 62. Nxf5 {[%clk 0:00:14]}  Kc4 {[%clk 0:00:04]} 63. Nd6+ {[%clk 0:00:12]}  Kb3 {[%clk 0:00:04]} 64. b5 {[%clk 0:00:13]}  Ne6 {[%clk 0:00:03]} 65. b6 {[%clk 0:00:13]}  Nc5 {[%clk 0:00:02]} 66. Nxe4 {[%clk 0:00:12]}  Nd7 {[%clk 0:00:01]} 67. g4 {[%clk 0:00:10]}  Kxa3 {[%clk 0:00:02]} 68. g5 {[%clk 0:00:10]}  Nxb6 {[%clk 0:00:02]} 69. g6 {[%clk 0:00:09]}  Nd5 {[%clk 0:00:03]} 70. g7 {[%clk 0:00:08]}  Ne7 {[%clk 0:00:03]} 71. f4 {[%clk 0:00:05]}  Kb2 {[%clk 0:00:04]} 72. Nd6 {[%clk 0:00:02]}  Kb3 {[%clk 0:00:03]} 73. Nb5 {[%clk 0:00:03]}  Kb4 {[%clk 0:00:03]} 74. Nd4 {[%clk 0:00:03]}  Kc3 {[%clk 0:00:03]} 75. Ne2+ {[%clk 0:00:03]}  Kb2 {[%clk 0:00:02]} 76. Nc1 {[%clk 0:00:04]}  Kxc1 {[%clk 0:00:02]} 77. f5 {[%clk 0:00:04]}  Ng8 {[%clk 0:00:02]} 78. Ke2 {[%clk 0:00:04]}  a3 {[%clk 0:00:03]} 79. Ke3 {[%clk 0:00:05]}  a2 {[%clk 0:00:03]} 80. Ke4 {[%clk 0:00:06]}  a1=Q {[%clk 0:00:03]} 81. Kd5 {[%clk 0:00:07]}  Qxg7 {[%clk 0:00:04]} 0-1


[Site "https://www.chess.com"]

[Event "Titled Tuesday Blitz January 31 Early 2023"]
[White "Milikow, Yoav"]
[Black "Ivic, Velimir"]
[WhiteFideId "2822237"]
[BlackFideId "950122"]
[WhiteElo "2394"]
[BlackElo "2595"]
[Result "1-0"]
[Round "03"]
[TimeControl "180+2"]
[Date "2023.01.31"]
[WhiteClock "0:00:06"]
[BlackClock "0:00:04"]

1. d4 {[%clk 0:03:00]}  Nf6 {[%clk 0:02:59]} 2. c4 {[%clk 0:03:01]}  e6 {[%clk 0:02:58]} 3. Nc3 {[%clk 0:03:00]}  d5 {[%clk 0:02:58]} 4. Nf3 {[%clk 0:02:59]}  c6 {[%clk 0:02:58]} 5. cxd5 {[%clk 0:02:55]}  exd5 {[%clk 0:02:58]} 6. Bf4 {[%clk 0:02:53]}  Bd6 {[%clk 0:02:55]} 7. Bxd6 {[%clk 0:02:53]}  Qxd6 {[%clk 0:02:56]} 8. e3 {[%clk 0:02:54]}  Bf5 {[%clk 0:02:56]} 9. Nh4 {[%clk 0:02:51]}  Bg4 {[%clk 0:02:56]} 10. Qb3 {[%clk 0:02:50]}  Qe7 {[%clk 0:02:53]} 11. h3 {[%clk 0:02:50]}  Bc8 {[%clk 0:02:52]} 12. Bd3 {[%clk 0:02:50]}  O-O {[%clk 0:02:51]} 13. O-O {[%clk 0:02:45]}  Re8 {[%clk 0:02:44]} 14. Nf5 {[%clk 0:02:28]}  Bxf5 {[%clk 0:02:41]} 15. Bxf5 {[%clk 0:02:29]}  Qc7 {[%clk 0:02:31]} 16. Rad1 {[%clk 0:02:23]}  Nbd7 {[%clk 0:02:31]} 17. Qc2 {[%clk 0:02:17]}  Nf8 {[%clk 0:02:30]} 18. b4 {[%clk 0:02:14]}  a6 {[%clk 0:02:28]} 19. a4 {[%clk 0:02:08]}  g6 {[%clk 0:02:27]} 20. Bd3 {[%clk 0:02:08]}  Ne6 {[%clk 0:02:27]} 21. a5 {[%clk 0:02:06]}  Kg7 {[%clk 0:02:21]} 22. f4 {[%clk 0:01:58]}  Nf8 {[%clk 0:02:17]} 23. Rde1 {[%clk 0:01:52]}  Qd6 {[%clk 0:02:16]} 24. Qb1 {[%clk 0:01:48]}  Re7 {[%clk 0:02:15]} 25. Re2 {[%clk 0:01:46]}  Rae8 {[%clk 0:02:16]} 26. Rfe1 {[%clk 0:01:46]}  h5 {[%clk 0:02:14]} 27. Na4 {[%clk 0:01:43]}  h4 {[%clk 0:02:11]} 28. Nc5 {[%clk 0:01:43]}  Nh5 {[%clk 0:02:11]} 29. Qc1 {[%clk 0:01:15]}  Ng3 {[%clk 0:02:09]} 30. Rf2 {[%clk 0:01:15]}  Nh7 {[%clk 0:02:04]} 31. Rf3 {[%clk 0:01:12]}  Nf6 {[%clk 0:02:04]} 32. Bf1 {[%clk 0:01:10]}  Nfh5 {[%clk 0:02:00]} 33. Nd3 {[%clk 0:01:00]}  Ne4 {[%clk 0:01:49]} 34. Be2 {[%clk 0:00:53]}  Nhg3 {[%clk 0:01:49]} 35. Bd1 {[%clk 0:00:53]}  f6 {[%clk 0:01:43]} 36. Qb2 {[%clk 0:00:48]}  Qe6 {[%clk 0:01:41]} 37. Nc5 {[%clk 0:00:35]}  Qf7 {[%clk 0:01:42]} 38. Bc2 {[%clk 0:00:33]}  Nd6 {[%clk 0:01:41]} 39. Bd3 {[%clk 0:00:31]}  Ngf5 {[%clk 0:01:25]} 40. Qf2 {[%clk 0:00:29]}  Ng3 {[%clk 0:01:24]} 41. Na4 {[%clk 0:00:23]}  Nde4 {[%clk 0:01:21]} 42. Qc2 {[%clk 0:00:20]}  Nf5 {[%clk 0:01:19]} 43. Qc1 {[%clk 0:00:18]}  Nfd6 {[%clk 0:01:15]} 44. Nc5 {[%clk 0:00:17]}  Qg8 {[%clk 0:01:13]} 45. Qc2 {[%clk 0:00:16]}  Qh7 {[%clk 0:01:13]} 46. Bxe4 {[%clk 0:00:16]}  Nxe4 {[%clk 0:01:13]} 47. Qd3 {[%clk 0:00:14]}  Nd6 {[%clk 0:01:11]} 48. Rf2 {[%clk 0:00:12]}  Qh5 {[%clk 0:01:09]} 49. Rfe2 {[%clk 0:00:12]}  Kh8 {[%clk 0:01:06]} 50. Qd1 {[%clk 0:00:12]}  g5 {[%clk 0:01:06]} 51. fxg5 {[%clk 0:00:11]}  Qxg5 {[%clk 0:01:07]} 52. Qd3 {[%clk 0:00:10]}  Rg7 {[%clk 0:01:05]} 53. Rf2 {[%clk 0:00:08]}  Nc4 {[%clk 0:01:03]} 54. e4 {[%clk 0:00:07]}  Nd6 {[%clk 0:01:04]} 55. e5 {[%clk 0:00:06]}  f5 {[%clk 0:00:51]} 56. Ref1 {[%clk 0:00:05]}  Ne4 {[%clk 0:00:51]} 57. Re2 {[%clk 0:00:04]}  Reg8 {[%clk 0:00:41]} 58. Rf3 {[%clk 0:00:04]}  Ng3 {[%clk 0:00:28]} 59. Re1 {[%clk 0:00:03]}  Nh5 {[%clk 0:00:25]} 60. Re2 {[%clk 0:00:04]}  Nf4 {[%clk 0:00:25]} 61. Rxf4 {[%clk 0:00:04]}  Qxf4 {[%clk 0:00:26]} 62. Ne6 {[%clk 0:00:05]}  Qg3 {[%clk 0:00:17]} 63. Qxf5 {[%clk 0:00:05]}  Qg5 {[%clk 0:00:02]} 64. Nxg5 {[%clk 0:00:05]}  Rxg5 {[%clk 0:00:03]} 65. Qf6+ {[%clk 0:00:05]}  R8g7 {[%clk 0:00:03]} 66. e6 {[%clk 0:00:06]}  Kg8 {[%clk 0:00:04]} 1-0


[Site "https://www.chess.com"]